Workbook

Sheet Turkey Run
A1: RETURN TO:
A2: GEORGIA ENVIRONMENTAL PROTECTION DIVISION
A3: LAND PROTECTION COMPLIANCE PROGRAM
A4: 4244 INTERNATIONAL PARKWAY
A5: SUITE 104
A6: ATLANTA, GEORGIA 30354
A7: ATTN: QUARTERLY SOLID WASTE REPORT
A8: (404) 362-2696
A10: SOLID WASTE DISPOSAL REPORT
A11: COMPLETE THE SECTION OF THIS FORM BELOW THIS LINE
A13: Operator's name: | B13: Turkey Run Landfill
A15: Address: | B15: 7144 Lone Oak Road
B16: Hogansville GA 30230 706-637-8520
A18: Disposal Site Name: | B18: Turkey Run Landfill
A20: Solid Waste Permit Number: | C20: 099-019D(MSWL)
A22: Report Year: | B22: 2018 | D22: Reporting Quarter: | E22: Q3
A24: Measuring Method: | B24: On-Site Scales X Off-Site Scales _____ Representative Sample _____
A26: Origin of | E26: MSW Tons
A27: Waste: | E27: Disposed:
A29: CARROLL | E29: =IF(A29="","",SUMIF(Fastlane!$A:$A,A29,Fastlane!$B:$B)) -> 869.85
A30: CHEROKEE | E30: =IF(A30="","",SUMIF(Fastlane!$A:$A,A30,Fastlane!$B:$B)) -> 35.58
A31: CLAYTON | E31: =IF(A31="","",SUMIF(Fastlane!$A:$A,A31,Fastlane!$B:$B)) -> 49,993.99
A32: COBB | E32: =IF(A32="","",SUMIF(Fastlane!$A:$A,A32,Fastlane!$B:$B)) -> 5,071.21
A33: COWETA | E33: =IF(A33="","",SUMIF(Fastlane!$A:$A,A33,Fastlane!$B:$B)) -> 33,601.35
A34: DOUGLAS | E34: =IF(A34="","",SUMIF(Fastlane!$A:$A,A34,Fastlane!$B:$B)) -> 15.99
A35: FAYETTE | E35: =IF(A35="","",SUMIF(Fastlane!$A:$A,A35,Fastlane!$B:$B)) -> 8,274.38
A36: FULTON | E36: =IF(A36="","",SUMIF(Fastlane!$A:$A,A36,Fastlane!$B:$B)) -> 53,048.79
A37: HARRIS | E37: =IF(A37="","",SUMIF(Fastlane!$A:$A,A37,Fastlane!$B:$B)) -> 22.46
A38: HEARD | E38: =IF(A38="","",SUMIF(Fastlane!$A:$A,A38,Fastlane!$B:$B)) -> 899.48
A39: HENRY | E39: =IF(A39="","",SUMIF(Fastlane!$A:$A,A39,Fastlane!$B:$B)) -> 549.44
A40: MERIWETHER | E40: =IF(A40="","",SUMIF(Fastlane!$A:$A,A40,Fastlane!$B:$B)) -> 11,699.68
A41: PIKE | E41: =IF(A41="","",SUMIF(Fastlane!$A:$A,A41,Fastlane!$B:$B)) -> 147.57
A42: ROCKDALE | E42: =IF(A42="","",SUMIF(Fastlane!$A:$A,A42,Fastlane!$B:$B)) -> 4,878.18
A43: TOLBERT | E43: =IF(A43="","",SUMIF(Fastlane!$A:$A,A43,Fastlane!$B:$B)) -> 0.00
A44: TROUP | E44: =IF(A44="","",SUMIF(Fastlane!$A:$A,A44,Fastlane!$B:$B)) -> 1,315.95
E45: =IF(A45="","",SUMIF(Fastlane!$A:$A,A45,Fastlane!$B:$B)) -> 
E46: =IF(A46="","",SUMIF(Fastlane!$A:$A,A46,Fastlane!$B:$B)) -> 
E47: =IF(A47="","",SUMIF(Fastlane!$A:$A,A47,Fastlane!$B:$B)) -> 
E48: =IF(A48="","",SUMIF(Fastlane!$A:$A,A48,Fastlane!$B:$B)) -> 
C49: TOTALS | E49: =SUM(E29:E48) -> 170,423.90

Sheet Fastlane
D1: Origin / Material Summary Report
D2: Criteria: 07/01/2018 12:00 AM to 09/30/2018 11:59 PM
D3: Business Unit Name: Turkey Run Landfill - S07435 (USA)
D4: User: tlee
D5: Date: Oct 08 2018, 6:10:31 AM - Central Standard Time
D6: Operation Type: Inbound
D7: Customer Name: All
D8: Ticket Type: All
D9: Customer Type: All
D10: PMT Category: All
D11: Profile:
A12: Origin | B12: Tons | D12: Origin | E12: Material | F12: Loads | G12: Yards | H12: Tons | I12: Material Rev. | J12: Tax Rev. | K12: Surch. Rev. | L12: Total | Z12: Origin
A13: =IF(OR(D13="",D13="Origin Total",D13="Totals",E13="7003T",I13=0),"",D13) -> CARROLL | B13: =IF(A13="","",H13) -> 25.62 | D13: CARROLL | E13: 1006T | F13: 2 | G13: 0 | H13: 25.62 | I13: $505.44 | J13: $44.84 | K13: $0.00 | L13: $550.28 | Z13: CARROLL
A14: =IF(OR(D14="",D14="Origin Total",D14="Totals",E14="7003T",I14=0),"",D14) -> CARROLL | B14: =IF(A14="","",H14) -> 36.35 | D14: CARROLL | E14: 2000T | F14: 6 | G14: 0 | H14: 36.35 | I14: $816.35 | J14: $63.62 | K14: $28.21 | L14: $908.18 | Z14: CHEROKEE
D15: CARROLL | E15: 7003T | F15: 1 | G15: 0 | H15: 14.22 | I15: $0.00 | J15: $0.00 | K15: $0.00 | L15: $0.00 | Z15: CLAYTON
A16: CARROLL | B16: 3.17 | D16: CARROLL | E16: ASBE-Tons | F16: 2 | G16: 0 | H16: 3.17 | I16: $168.54 | J16: $5.55 | K16: $0.00 | L16: $174.09 | Z16: COBB
A17: CARROLL | B17: 320.6 | D17: CARROLL | E17: C&D INDUSTRIAL-Tons | F17: 55 | G17: 0 | H17: 320.6 | I17: $6,547.34 | J17: $561.13 | K17: $1,362.01 | L17: $8,470.48 | Z17: COWETA
A18: CARROLL | B18: 0.61 | D18: CARROLL | E18: Off Spec Food-Tons | F18: 1 | G18: 0 | H18: 0.61 | I18: $137.00 | J18: $1.07 | K18: $36.22 | L18: $174.29 | Z18: DOUGLAS
A19: CARROLL | B19: =IF(A19="","",H19) -> 56.92 | D19: CARROLL | E19: RECALLED FOOD PRODUCTS-TON | F19: 4 | G19: 0 | H19: 56.92 | I19: $1,707.60 | J19: $99.62 | K19: $532.86 | L19: $2,340.08 | Z19: FAYETTE
A20: CARROLL | B20: 426.58 | D20: CARROLL | E20: Special Misc-Tons | F20: 43 | G20: 0 | H20: 426.58 | I20: $15,959.75 | J20: $746.56 | K20: $3,203.93 | L20: $19,910.24 | Z20: FULTON
D21: Origin Total | F21: 114 | G21: 0 | H21: 884.07 | I21: $25,842.02 | J21: $1,522.39 | K21: $5,163.23 | L21: $32,527.64 | Z21: HARRIS
A22: CHEROKEE | B22: 18.74 | D22: CHEROKEE | E22: 1006T | F22: 1 | G22: 0 | H22: 18.74 | I22: $362.62 | J22: $32.80 | K22: $0.00 | L22: $395.42 | Z22: HEARD
A23: CHEROKEE | B23: 16.84 | D23: CHEROKEE | E23: DIESEL FUEL CONTAMINATED SOIL/OR DEBRIS CLEANUP | F23: 1 | G23: 0 | H23: 16.84 | I23: $421.00 | J23: $29.47 | K23: $0.00 | L23: $450.47 | Z23: HENRY
D24: Origin Total | F24: 2 | G24: 0 | H24: 35.58 | I24: $783.62 | J24: $62.27 | K24: $0.00 | L24: $845.89 | Z24: MERIWETHER
A25: CLAYTON | B25: 49156.87 | D25: CLAYTON | E25: 1006T | F25: 2210 | G25: 0 | H25: 49156.87 | I25: $951,779.20 | J25: $86,027.15 | K25: $0.00 | L25: $1,037,806.35 | Z25: PIKE
A26: CLAYTON | B26: 79.38 | D26: CLAYTON | E26: DIRECTLF/SOLID WHEELS AND TIRES/TON | F26: 8 | G26: 0 | H26: 79.38 | I26: $2,243.26 | J26: $138.92 | K26: $0.00 | L26: $2,382.18 | Z26: ROCKDALE
A27: CLAYTON | B27: 11 | D27: CLAYTON | E27: DRUM-EACH | F27: 2 | G27: 0 | H27: 11 | I27: $1,573.04 | J27: $19.26 | K27: $0.00 | L27: $1,592.30 | Z27: TOLBERT
A28: CLAYTON | B28: 31.92 | D28: CLAYTON | E28: DRUM/NON PBC PETRO SOIL/DEBRIS -EACH | F28: 3 | G28: 0 | H28: 31.92 | I28: $2,724.73 | J28: $55.87 | K28: $0.00 | L28: $2,780.60 | Z28: TROUP
A29: CLAYTON | B29: 32.99 | D29: CLAYTON | E29: GARNET MATERIAL W/SOME METAL SHAVINGS | F29: 2 | G29: 0 | H29: 32.99 | I29: $959.35 | J29: $57.73 | K29: $2,157.30 | L29: $3,174.38
A30: CLAYTON | B30: 109.34 | D30: CLAYTON | E30: NON PBC PETROLEUM CONT. SOIL/DEBRIS - TON | F30: 9 | G30: 0 | H30: 109.34 | I30: $3,071.36 | J30: $191.36 | K30: $0.00 | L30: $3,262.72
A31: CLAYTON | B31: 16.24 | D31: CLAYTON | E31: Off Spec Prod Sld-Tons | F31: 1 | G31: 0 | H31: 16.24 | I31: $406.00 | J31: $28.42 | K31: $96.31 | L31: $530.73
A32: CLAYTON | B32: 14.79 | D32: CLAYTON | E32: PLANT YATES/REMEMIDATION WASTE OF PETROLEUM PAH | F32: 1 | G32: 0 | H32: 14.79 | I32: $329.08 | J32: $25.88 | K32: $0.00 | L32: $354.96
A33: CLAYTON | B33: 119.16 | D33: CLAYTON | E33: SOIL/DEBRIS/LIQUIDS PETROLEUM - TON | F33: 6 | G33: 0 | H33: 119.16 | I33: $3,347.20 | J33: $208.54 | K33: $0.00 | L33: $3,555.74
A34: CLAYTON | B34: 414.24 | D34: CLAYTON | E34: Special Misc-Tons | F34: 38 | G34: 0 | H34: 414.24 | I34: $12,386.36 | J34: $702.36 | K34: $469.00 | L34: $13,557.72
A35: CLAYTON | B35: 8.06 | D35: CLAYTON | E35: Treated Wood-Tons | F35: 1 | G35: 0 | H35: 8.06 | I35: $201.50 | J35: $14.11 | K35: $53.33 | L35: $268.94
D36: Origin Total | F36: 2281 | G36: 0 | H36: 49993.99 | I36: $979,021.08 | J36: $87,469.60 | K36: $2,775.94 | L36: $1,069,266.62
A37: COBB | B37: 5029.72 | D37: COBB | E37: 1006T | F37: 220 | G37: 0 | H37: 5029.72 | I37: $94,575.70 | J37: $8,802.26 | K37: $0.00 | L37: $103,377.96
A38: COBB | B38: 13.76 | D38: COBB | E38: OFF SPEC/EXPIRED FOOD PRODUCTS(WM025A)-TON | F38: 1 | G38: 0 | H38: 13.76 | I38: $427.94 | J38: $24.08 | K38: $133.35 | L38: $585.37
A39: COBB | B39: 12.39 | D39: COBB | E39: Off Spec Prod Sld-Tons | F39: 1 | G39: 0 | H39: 12.39 | I39: $371.70 | J39: $21.68 | K39: $675.00 | L39: $1,068.38
A40: COBB | B40: 15.34 | D40: COBB | E40: PLANT YATES/REMEMIDATION WASTE OF PETROLEUM PAH | F40: 1 | G40: 0 | H40: 15.34 | I40: $341.32 | J40: $26.85 | K40: $0.00 | L40: $368.17
D41: Origin Total | F41: 223 | G41: 0 | H41: 5071.21 | I41: $95,716.66 | J41: $8,874.87 | K41: $808.35 | L41: $105,399.88
A42: COWETA | B42: 17954.09 | D42: COWETA | E42: 1006T | F42: 1119 | G42: 0 | H42: 17954.09 | I42: $415,101.06 | J42: $31,421.04 | K42: $25.04 | L42: $446,547.14
A43: COWETA | B43: 356.1 | D43: COWETA | E43: 2000T | F43: 102 | G43: 0 | H43: 356.1 | I43: $7,416.59 | J43: $623.29 | K43: $127.56 | L43: $8,167.44
D44: COWETA | E44: 7003T | F44: 24 | G44: 0 | H44: 382.19 | I44: $0.00 | J44: $0.00 | K44: $0.00 | L44: $0.00
D45: COWETA | E45: BXS | F45: 2 | G45: 0 | H45: 0 | I45: $0.00 | J45: $0.00 | K45: $2,500.00 | L45: $2,500.00
A46: COWETA | B46: 3284.73 | D46: COWETA | E46: C&D INDUSTRIAL-TON | F46: 269 | G46: 0 | H46: 3284.73 | I46: $78,833.52 | J46: $5,748.62 | K46: $0.00 | L46: $84,582.14
A47: COWETA | B47: 49.96 | D47: COWETA | E47: C&D INDUSTRIAL-Tons | F47: 5 | G47: 0 | H47: 49.96 | I47: $1,604.98 | J47: $87.45 | K47: $1,329.40 | L47: $3,021.83
A48: COWETA | B48: 42.68 | D48: COWETA | E48: CONSTRUCTION AND DEMOLITION DEBRIS-TON | F48: 3 | G48: 0 | H48: 42.68 | I48: $938.96 | J48: $74.69 | K48: $82.45 | L48: $1,096.10
A49: COWETA | B49: 258.14 | D49: COWETA | E49: ContSoilPet-Tons | F49: 15 | G49: 0 | H49: 258.14 | I49: $5,643.21 | J49: $451.77 | K49: $1,494.15 | L49: $7,589.13
A50: COWETA | B50: 4.56 | D50: COWETA | E50: GASOLINE IMPACTED SOIL | F50: 1 | G50: 0 | H50: 4.56 | I50: $150.00 | J50: $7.98 | K50: $46.79 | L50: $204.77
A51: COWETA | B51: 809.99 | D51: COWETA | E51: OFF SPEC/EXPIRED FOOD PRODUCTS(WM025A)-TON | F51: 69 | G51: 0 | H51: 809.99 | I51: $25,207.23 | J51: $1,417.56 | K51: $11,796.70 | L51: $38,421.49
A52: COWETA | B52: 393.26 | D52: COWETA | E52: Off Spec Prod Sld-Tons | F52: 28 | G52: 0 | H52: 393.26 | I52: $9,878.65 | J52: $688.23 | K52: $2,949.91 | L52: $13,516.79
A53: COWETA | B53: 487.08 | D53: COWETA | E53: PCE IMPACTED SOIL-TON | F53: 29 | G53: 0 | H53: 487.08 | I53: $11,689.92 | J53: $852.42 | K53: $0.00 | L53: $12,542.34
A54: COWETA | B54: 2132.62 | D54: COWETA | E54: PETROLEUM IMPACTED SOIL-TON | F54: 119 | G54: 0 | H54: 2132.62 | I54: $51,182.88 | J54: $3,732.21 | K54: $0.00 | L54: $54,915.09
A55: COWETA | B55: 6812.62 | D55: COWETA | E55: PLANT YATES/REMEMIDATION WASTE OF PETROLEUM PAH | F55: 424 | G55: 0 | H55: 6812.62 | I55: $151,581.37 | J55: $11,922.62 | K55: $0.00 | L55: $163,503.99
A56: COWETA | B56: 7.24 | D56: COWETA | E56: RECALLED FOOD PRODUCTS-TON | F56: 1 | G56: 0 | H56: 7.24 | I56: $217.20 | J56: $12.67 | K56: $67.75 | L56: $297.62
A57: COWETA | B57: 2.23 | D57: COWETA | E57: SOIL WASTE - DRUM | F57: 1 | G57: 0 | H57: 2.23 | I57: $210.00 | J57: $3.90 | K57: $65.43 | L57: $279.33
A58: COWETA | B58: 169.92 | D58: COWETA | E58: Sludge Filter-Tons | F58: 9 | G58: 0 | H58: 169.92 | I58: $3,763.74 | J58: $297.37 | K58: $0.00 | L58: $4,061.11
A59: COWETA | B59: 818.07 | D59: COWETA | E59: Special Misc-Tons | F59: 57 | G59: 0 | H59: 818.07 | I59: $18,296.74 | J59: $1,431.70 | K59: $4,842.99 | L59: $24,571.43
A60: COWETA | B60: 8.75 | D60: COWETA | E60: TONS-NON-HAZ ASH PROCESS RESIDUALS | F60: 1 | G60: 0 | H60: 8.75 | I60: $150.94 | J60: $15.31 | K60: $405.00 | L60: $571.25
A61: COWETA | B61: 9.31 | D61: COWETA | E61: Treated Wood-Tons | F61: 2 | G61: 0 | H61: 9.31 | I61: $324.37 | J61: $16.30 | K61: $91.91 | L61: $432.58
D62: Origin Total | F62: 2280 | G62: 0 | H62: 33983.54 | I62: $782,191.36 | J62: $58,805.13 | K62: $25,825.08 | L62: $866,821.57
A63: DOUGLAS | B63: 2.4 | D63: DOUGLAS | E63: 1006T | F63: 1 | G63: 0 | H63: 2.4 | I63: $76.08 | J63: $4.20 | K63: $0.00 | L63: $80.28
A64: DOUGLAS | B64: 13.59 | D64: DOUGLAS | E64: UNUSED/OFF-SPEC PRODCUTS (SOLID) | F64: 1 | G64: 0 | H64: 13.59 | I64: $434.88 | J64: $23.78 | K64: $0.00 | L64: $458.66
D65: Origin Total | F65: 2 | G65: 0 | H65: 15.99 | I65: $510.96 | J65: $27.98 | K65: $0.00 | L65: $538.94
A66: FAYETTE | B66: 8230.25 | D66: FAYETTE | E66: 1006T | F66: 378 | G66: 0 | H66: 8230.25 | I66: $173,169.02 | J66: $14,403.40 | K66: $0.00 | L66: $187,572.42
D67: FAYETTE | E67: 7000T | F67: 3 | G67: 0 | H67: 53.78 | I67: $0.00 | J67: $0.00 | K67: $0.00 | L67: $0.00
D68: FAYETTE | E68: 7003T | F68: 219 | G68: 0 | H68: 3600.94 | I68: $0.00 | J68: $0.00 | K68: $0.00 | L68: $0.00
A69: FAYETTE | B69: 16.78 | D69: FAYETTE | E69: Special Misc-Cubic Yards | F69: 3 | G69: 50 | H69: 16.78 | I69: $1,081.50 | J69: $29.36 | K69: $0.00 | L69: $1,110.86
A70: FAYETTE | B70: 27.35 | D70: FAYETTE | E70: UNUSED/OFF-SPEC PRODCUTS (SOLID) | F70: 2 | G70: 0 | H70: 27.35 | I70: $875.20 | J70: $47.87 | K70: $0.00 | L70: $923.07
D71: Origin Total | F71: 605 | G71: 50 | H71: 11929.1 | I71: $175,125.72 | J71: $14,480.63 | K71: $0.00 | L71: $189,606.35
A72: FULTON | B72: 26006.79 | D72: FULTON | E72: 1006T | F72: 1194 | G72: 0 | H72: 26006.79 | I72: $504,981.71 | J72: $45,513.38 | K72: $325.30 | L72: $550,820.39
A73: FULTON | B73: 5.29 | D73: FULTON | E73: 2000T | F73: 3 | G73: 0 | H73: 5.29 | I73: $142.36 | J73: $9.26 | K73: $16.81 | L73: $168.43
D74: FULTON | E74: 7003T | F74: 63 | G74: 0 | H74: 1065.42 | I74: $0.00 | J74: $0.00 | K74: $0.00 | L74: $0.00
A75: FULTON | B75: 8.12 | D75: FULTON | E75: C&D INDUSTRIAL-TON | F75: 1 | G75: 0 | H75: 8.12 | I75: $194.88 | J75: $14.21 | K75: $0.00 | L75: $209.09
A76: FULTON | B76: 4833.34 | D76: FULTON | E76: C&D INDUSTRIAL-Tons | F76: 366 | G76: 0 | H76: 4833.34 | I76: $160,709.02 | J76: $8,458.78 | K76: $156,221.35 | L76: $325,389.15
A77: FULTON | B77: 340.19 | D77: FULTON | E77: CONSTRUCTION AND DEMOLITION DEBRIS-TON | F77: 20 | G77: 0 | H77: 340.19 | I77: $7,511.02 | J77: $595.37 | K77: $659.46 | L77: $8,765.85
A78: =IF(OR(D78="",D78="Origin Total",D78="Totals",E78="7003T",I78=0),"",D78) -> FULTON | B78: 37.46 | D78: FULTON | E78: ContSoilPet-Tons | F78: 2 | G78: 0 | H78: 37.46 | I78: $822.62 | J78: $65.56 | K78: $218.35 | L78: $1,106.53
A79: FULTON | B79: 24.19 | D79: FULTON | E79: DIRECT LANDFILL | F79: 1 | G79: 0 | H79: 24.19 | I79: $804.32 | J79: $0.00 | K79: $50.00 | L79: $854.32
A80: FULTON | B80: 7.59 | D80: FULTON | E80: DRUM/NON PBC PETRO SOIL/DEBRIS -EACH | F80: 1 | G80: 0 | H80: 7.59 | I80: $786.52 | J80: $13.28 | K80: $0.00 | L80: $799.80
A81: FULTON | B81: 14.03 | D81: FULTON | E81: ETHYLENE GLYCOL IMPACTED ABSORBENTS | F81: 1 | G81: 0 | H81: 14.03 | I81: $30.00 | J81: $24.55 | K81: $14.06 | L81: $68.61
A82: FULTON | B82: 3.44 | D82: FULTON | E82: GYM FLOOR PADDING | F82: 1 | G82: 20 | H82: 3.44 | I82: $150.00 | J82: $6.02 | K82: $46.75 | L82: $202.77
A83: FULTON | B83: =IF(A83="","",H83) -> 51.95 | D83: FULTON | E83: HDPE FIBER OPTIC WASTE-TON | F83: 4 | G83: 0 | H83: 51.95 | I83: $1,839.56 | J83: $90.93 | K83: $0.00 | L83: $1,930.49
A84: FULTON | B84: 37.14 | D84: FULTON | E84: NH NON RCRA SOLIDS-DRUM | F84: 3 | G84: 0 | H84: 37.14 | I84: $2,649.57 | J84: $64.99 | K84: $826.96 | L84: $3,541.52
A85: FULTON | B85: 3.55 | D85: FULTON | E85: NON HAZARDOUS SOIL CUTTINGS-EMPTY DRUM | F85: 1 | G85: 0 | H85: 3.55 | I85: $228.24 | J85: $6.21 | K85: $60.21 | L85: $294.66
A86: FULTON | B86: 31.09 | D86: FULTON | E86: NON PBC PETROLEUM CONT. SOIL/DEBRIS - TON | F86: 3 | G86: 0 | H86: 31.09 | I86: $873.32 | J86: $54.41 | K86: $0.00 | L86: $927.73
A87: FULTON | B87: 10.91 | D87: FULTON | E87: NON-TSCA SOIL AND GRAVEL | F87: 1 | G87: 0 | H87: 10.91 | I87: $294.57 | J87: $19.09 | K87: $600.00 | L87: $913.66
A88: FULTON | B88: 459.32 | D88: FULTON | E88: OFF SPEC/EXPIRED FOOD PRODUCTS(WM025A)-TON | F88: 40 | G88: 0 | H88: 459.32 | I88: $14,284.87 | J88: $803.88 | K88: $6,917.45 | L88: $22,006.20
A89: FULTON | B89: 94.62 | D89: FULTON | E89: OIL IMPACTED SOIL, GRAVEL AND SOFT ABSORBENTS-TON | F89: 8 | G89: 0 | H89: 94.62 | I89: $2,365.50 | J89: $165.60 | K89: $543.12 | L89: $3,074.22
A90: FULTON | B90: 12.74 | D90: FULTON | E90: OILY RAGS-TONS | F90: 6 | G90: 0 | H90: 12.74 | I90: $775.50 | J90: $22.30 | K90: $205.14 | L90: $1,002.94
A91: FULTON | B91: 319.9 | D91: FULTON | E91: Off Spec Food-Tons | F91: 30 | G91: 0 | H91: 319.9 | I91: $10,578.85 | J91: $559.87 | K91: $360.37 | L91: $11,499.09
A92: FULTON | B92: 355.64 | D92: FULTON | E92: Off Spec Prod Sld-Tons | F92: 37 | G92: 0 | H92: 355.64 | I92: $10,612.50 | J92: $622.40 | K92: $23,708.01 | L92: $34,942.91
A93: FULTON | B93: 5719.15 | D93: FULTON | E93: PLANT YATES/REMEMIDATION WASTE OF PETROLEUM PAH | F93: 385 | G93: 0 | H93: 5719.15 | I93: $127,251.52 | J93: $10,008.97 | K93: $0.00 | L93: $137,260.49
A94: FULTON | B94: 15.04 | D94: FULTON | E94: SOIL/DEBRIS/LIQUIDS PETROLEUM - TON | F94: 1 | G94: 0 | H94: 15.04 | I94: $422.47 | J94: $26.32 | K94: $0.00 | L94: $448.79
D95: FULTON | E95: SPH | F95: 10 | G95: 0 | H95: 0 | I95: $0.00 | J95: $0.00 | K95: $35,250.00 | L95: $35,250.00
A96: FULTON | B96: 1834.29 | D96: FULTON | E96: Sludge Filter-Tons | F96: 98 | G96: 0 | H96: 1834.29 | I96: $40,629.57 | J96: $3,210.17 | K96: $0.00 | L96: $43,839.74
A97: FULTON | B97: 615.37 | D97: FULTON | E97: Special Misc-Tons | F97: 67 | G97: 0 | H97: 615.37 | I97: $20,418.52 | J97: $1,076.98 | K97: $3,664.71 | L97: $25,160.21
A98: FULTON | B98: 1.08 | D98: FULTON | E98: TONS-DIESEL FUEL IMPACTD SOIL OR DEBRIS CLEANUP | F98: 1 | G98: 0 | H98: 1.08 | I98: $75.00 | J98: $1.89 | K98: $88.95 | L98: $165.84
A99: FULTON | B99: 11976.84 | D99: FULTON | E99: TONS-NON-HAZ ASH PROCESS RESIDUALS | F99: 1340 | G99: 0 | H99: 11976.84 | I99: $206,602.17 | J99: $20,961.06 | K99: $543,456.95 | L99: $771,020.18
A100: FULTON | B100: 164.2 | D100: FULTON | E100: Treated Wood-Tons | F100: 20 | G100: 0 | H100: 164.2 | I100: $4,280.27 | J100: $287.37 | K100: $1,132.92 | L100: $5,700.56
A101: FULTON | B101: 1.43 | D101: FULTON | E101: UNUSED/OFF-SPEC PRODUCTS (SOLID) | F101: 1 | G101: 0 | H101: 1.43 | I101: $125.00 | J101: $2.50 | K101: $0.00 | L101: $127.50
A102: FULTON | B102: 64.09 | D102: FULTON | E102: Wstwtr Sludge-Tons | F102: 7 | G102: 0 | H102: 64.09 | I102: $1,794.52 | J102: $112.16 | K102: $0.00 | L102: $1,906.68
D103: Origin Total | F103: 3716 | G103: 20 | H103: 54114.21 | I103: $1,122,233.97 | J103: $92,797.51 | K103: $774,366.87 | L103: $1,989,398.35
A104: HARRIS | B104: 6.72 | D104: HARRIS | E104: 2000T | F104: 1 | G104: 0 | H104: 6.72 | I104: $141.12 | J104: $11.76 | K104: $0.00 | L104: $152.88
A105: HARRIS | B105: 15.74 | D105: HARRIS | E105: Special Misc-Tons | F105: 2 | G105: 0 | H105: 15.74 | I105: $608.14 | J105: $27.55 | K105: $161.16 | L105: $796.85
D106: Origin Total | F106: 3 | G106: 0 | H106: 22.46 | I106: $749.26 | J106: $39.31 | K106: $161.16 | L106: $949.73
A107: HEARD | B107: 86.93 | D107: HEARD | E107: 1006T | F107: 29 | G107: 0 | H107: 86.93 | I107: $2,365.71 | J107: $152.12 | K107: $0.00 | L107: $2,517.83
A108: HEARD | B108: 812.55 | D108: HEARD | E108: 2000T | F108: 136 | G108: 0 | H108: 812.55 | I108: $19,290.01 | J108: $1,422.08 | K108: $0.00 | L108: $20,712.09
D109: HEARD | E109: 7003T | F109: 2 | G109: 0 | H109: 26.7 | I109: $0.00 | J109: $0.00 | K109: $0.00 | L109: $0.00
D110: Origin Total | F110: 167 | G110: 0 | H110: 926.18 | I110: $21,655.72 | J110: $1,574.20 | K110: $0.00 | L110: $23,229.92
A111: HENRY | B111: 410.48 | D111: HENRY | E111: 1006T | F111: 20 | G111: 0 | H111: 410.48 | I111: $8,640.62 | J111: $718.37 | K111: $0.00 | L111: $9,358.99
A112: HENRY | B112: 18.43 | D112: HENRY | E112: 2000T | F112: 2 | G112: 0 | H112: 18.43 | I112: $552.90 | J112: $32.26 | K112: $380.00 | L112: $965.16
A113: HENRY | B113: 112.12 | D113: HENRY | E113: HDPE FIBER OPTIC WASTE-TON | F113: 7 | G113: 0 | H113: 112.12 | I113: $3,970.17 | J113: $196.23 | K113: $0.00 | L113: $4,166.40
A114: HENRY | B114: 8.41 | D114: HENRY | E114: Special Liquid-Tons | F114: 1 | G114: 0 | H114: 8.41 | I114: $252.30 | J114: $14.72 | K114: $78.61 | L114: $345.63
D115: Origin Total | F115: 30 | G115: 0 | H115: 549.44 | I115: $13,415.99 | J115: $961.58 | K115: $458.61 | L115: $14,836.18
A116: MERIWETHER | B116: 10270.78 | D116: MERIWETHER | E116: 1006T | F116: 1480 | G116: 0 | H116: 10270.78 | I116: $230,782.14 | J116: $17,710.52 | K116: $2,714.44 | L116: $251,207.10
A117: MERIWETHER | B117: 875.08 | D117: MERIWETHER | E117: 2000T | F117: 233 | G117: 0 | H117: 875.08 | I117: $18,056.22 | J117: $1,531.68 | K117: $717.49 | L117: $20,305.39
D118: MERIWETHER | E118: 7003T | F118: 81 | G118: 0 | H118: 1127.02 | I118: $0.00 | J118: $0.00 | K118: $0.00 | L118: $0.00
A119: MERIWETHER | B119: 519.43 | D119: MERIWETHER | E119: CONSTRUCTION AND DEMOLITION DEBRIS-TON | F119: 30 | G119: 0 | H119: 519.43 | I119: $11,427.46 | J119: $909.04 | K119: $1,003.33 | L119: $13,339.83
A120: MERIWETHER | B120: 19.48 | D120: MERIWETHER | E120: HDPE FIBER OPTIC WASTE-TON | F120: 1 | G120: 0 | H120: 19.48 | I120: $689.79 | J120: $34.09 | K120: $0.00 | L120: $723.88
A121: MERIWETHER | B121: 14.91 | D121: MERIWETHER | E121: Special Misc-Tons | F121: 1 | G121: 0 | H121: 14.91 | I121: $430.75 | J121: $26.09 | K121: $114.15 | L121: $570.99
D122: Origin Total | F122: 1826 | G122: 0 | H122: 12826.7 | I122: $261,386.36 | J122: $20,211.42 | K122: $4,549.41 | L122: $286,147.19
A123: PIKE | B123: 2.5 | D123: PIKE | E123: 2000T | F123: 1 | G123: 0 | H123: 2.5 | I123: $49.80 | J123: $4.38 | K123: $0.00 | L123: $54.18
D124: PIKE | E124: 7003T | F124: 1 | G124: 0 | H124: 15.57 | I124: $0.00 | J124: $0.00 | K124: $0.00 | L124: $0.00
A125: PIKE | B125: 14.66 | D125: PIKE | E125: OIL IMPACTED SOIL, GRAVEL AND SOFT ABSORBENTS-TON | F125: 1 | G125: 0 | H125: 14.66 | I125: $366.50 | J125: $25.66 | K125: $84.04 | L125: $476.20
A126: PIKE | B126: 130.41 | D126: PIKE | E126: Wstwtr Sludge-Tons | F126: 15 | G126: 0 | H126: 130.41 | I126: $3,685.36 | J126: $228.22 | K126: $0.00 | L126: $3,913.58
D127: Origin Total | F127: 18 | G127: 0 | H127: 163.14 | I127: $4,101.66 | J127: $258.26 | K127: $84.04 | L127: $4,443.96
A128: ROCKDALE | B128: 4652.2 | D128: ROCKDALE | E128: 1006T | F128: 229 | G128: 0 | H128: 4652.2 | I128: $97,491.28 | J128: $8,141.60 | K128: $0.00 | L128: $105,632.88
A129: ROCKDALE | B129: 225.98 | D129: ROCKDALE | E129: Off Spec Prod Sld-Tons | F129: 24 | G129: 0 | H129: 225.98 | I129: $6,779.40 | J129: $395.52 | K129: $16,200.00 | L129: $23,374.92
D130: Origin Total | F130: 253 | G130: 0 | H130: 4878.18 | I130: $104,270.68 | J130: $8,537.12 | K130: $16,200.00 | L130: $129,007.80
D131: TOLBERT | E131: 7003T | F131: 1 | G131: 0 | H131: 4.05 | I131: $0.00 | J131: $0.00 | K131: $0.00 | L131: $0.00
D132: Origin Total | F132: 1 | G132: 0 | H132: 4.05 | I132: $0.00 | J132: $0.00 | K132: $0.00 | L132: $0.00
A133: TROUP | B133: 635.73 | D133: TROUP | E133: 1006T | F133: 92 | G133: 0 | H133: 635.73 | I133: $14,941.61 | J133: $1,112.67 | K133: $919.05 | L133: $16,973.33
A134: TROUP | B134: 514.03 | D134: TROUP | E134: 2000T | F134: 144 | G134: 0 | H134: 514.03 | I134: $10,462.25 | J134: $899.71 | K134: $101.34 | L134: $11,463.30
D135: TROUP | E135: 7003T | F135: 9 | G135: 0 | H135: 102.93 | I135: $0.00 | J135: $0.00 | K135: $0.00 | L135: $0.00
A136: TROUP | B136: 7.21 | D136: TROUP | E136: DIESEL FUEL IMPACTED SOIL | F136: 1 | G136: 0 | H136: 7.21 | I136: $216.30 | J136: $12.62 | K136: $49.40 | L136: $278.32
A137: TROUP | B137: 140.81 | D137: TROUP | E137: Special Misc-Tons | F137: 13 | G137: 0 | H137: 140.81 | I137: $4,209.73 | J137: $246.42 | K137: $2,094.97 | L137: $6,551.12
A138: TROUP | B138: 6.41 | D138: TROUP | E138: TRACK MATTING | F138: 1 | G138: 0 | H138: 6.41 | I138: $192.30 | J138: $11.22 | K138: $0.00 | L138: $203.52
A139: TROUP | B139: 11.76 | D139: TROUP | E139: Treated Wood-Tons | F139: 1 | G139: 0 | H139: 11.76 | I139: $294.00 | J139: $20.58 | K139: $77.64 | L139: $392.22
D140: Origin Total | F140: 261 | G140: 0 | H140: 1418.88 | I140: $30,316.19 | J140: $2,303.22 | K140: $3,242.40 | L140: $35,861.81
E141: 1006T | F141: 3 | G141: 0 | H141: 68.76 | I141: $1,357.84 | J141: $120.33 | K141: $0.00 | L141: $1,478.17
A142: =IF(OR(D142="",D142="Origin Total",D142="Totals",E142="7003T",I142=0),"",D142) ->  | E142: 2000T | F142: 1 | G142: 0 | H142: 4.55 | I142: $90.64 | J142: $7.96 | K142: $0.00 | L142: $98.60
E143: APV | F143: 21 | G143: 0 | H143: 0 | I143: $0.00 | J143: $0.00 | K143: $1,050.00 | L143: $1,050.00
E144: BXS | F144: 1 | G144: 0 | H144: 0 | I144: $0.00 | J144: $0.00 | K144: $1,250.00 | L144: $1,250.00
E145: MFP | F145: 2 | G145: 0 | H145: 0 | I145: $0.00 | J145: $0.00 | K145: $300.00 | L145: $300.00
E146: RCR | F146: 1 | G146: 0 | H146: 0 | I146: $0.00 | J146: $0.00 | K146: $25.00 | L146: $25.00
B147: =IF(A147="","",H147) ->  | E147: SPB | F147: 7 | G147: 0 | H147: 5033.66 | I147: $0.00 | J147: $0.00 | K147: $18,876.24 | L147: $18,876.24
E148: SPH | F148: 1 | G148: 0 | H148: 0 | I148: $0.00 | J148: $0.00 | K148: $2,350.00 | L148: $2,350.00
D149: Origin Total | F149: 37 | G149: 0 | H149: 5106.97 | I149: $1,448.48 | J149: $128.29 | K149: $23,851.24 | L149: $25,428.01
D150: Totals | F150: 11819 | G150: 70 | H150: 181923.69 | I150: $3,618,769.73 | J150: $298,053.78 | K150: $857,486.33 | L150: $4,774,309.84
A206: =IF(OR(D206="",D206="Origin Total",D206="Totals",E206="7003T",I206=0),"",D206) -> 
B211: =IF(A211="","",H211) -> 
A270: =IF(OR(D270="",D270="Origin Total",D270="Totals",E270="7003T",I270=0),"",D270) -> 
B275: =IF(A275="","",H275) -> 

Sheet Instructions
A2: Run Fastlane Orgin Report | B2: Origin / Material Summary Report | F2: Copy and paste in the fastlane tab
A3: These will AUTO -Exclude beneficial Use tons
A4: Exclude beneficial Use tons
B5: Tons with 0 amount charged
B6: Tons with Material Code 7003T
